bitfinex/quotes_SOLUSD_20241126
["timestamp","ask_amount","ask_price","bid_price","bid_amount"]
[1732628780928,26.25152533,228.62,228.56,23.776884]
[1732628781136,26.25152533,228.6,228.52,26.25152533]
[1732628781344,26.25152533,228.58,228.53,23.776884]
[1732628781532,26.25152533,228.58,228.52,23.776884]
[1732628781736,20.0,228.65,228.49,30.62782533]
[1732628781737,51.3,228.64,228.49,30.62782533]
[1732628782046,20.0,228.6,228.49,30.62782533]
[1732628782334,42.76017258,228.59,228.52,42.76017258]
[1732628782836,42.76017258,228.58,228.5,42.76017258]
[1732628783014,42.76017258,228.58,228.51,23.776884]
[1732628783218,42.76017258,228.58,228.51,66.53705658]
[1732628783540,42.76017258,228.59,228.53,23.776884]
[1732628783843,42.76017258,228.61,228.56,23.776884]
[1732628784042,42.76017258,228.62,228.56,23.776884]
[1732628784225,42.76017258,228.65,228.58,42.76017258]
[1732628784544,42.76017258,228.67,228.59,66.53705658]
[1732628784927,42.76017258,228.64,228.55,42.76017258]
[1732628785120,94.06017258,228.69,228.5,10.9406]
[1732628785121,42.76017258,228.6,228.56,23.776884]
[1732628785439,51.3,228.65,228.53,42.76017258]
[1732628786035,42.76017258,228.57,228.5,42.76017258]
[1732628786432,42.76017258,228.59,228.51,47.13627258]
[1732628786639,42.76017258,228.59,228.52,23.776884]
[1732628786949,42.76017258,228.57,228.49,42.76017258]
[1732628787636,42.76017258,228.6,228.53,42.76017258]
[1732628787846,42.76017258,228.62,228.55,42.76017258]
[1732628788026,42.76017258,228.61,228.54,42.76017258]
[1732628788348,42.76017258,228.6,228.54,28.152284]
[1732628788529,42.76017258,228.58,228.54,28.152284]
[1732628788928,42.76017258,228.55,228.52,23.776884]
[1732628789127,42.76017258,228.54,228.52,23.776884]
[1732628789342,20.0,228.6,228.5,4.3763]
[1732628789343,42.76017258,228.56,228.5,4.3763]
[1732628789643,42.76017258,228.59,228.51,42.76017258]
[1732628789834,42.76017258,228.61,228.54,42.76017258]
[1732628790032,42.76017258,228.63,228.57,23.776884]
[1732628790235,51.3,228.71,228.6,42.76017258]
[1732628790628,42.76017258,228.66,228.59,42.76017258]
[1732628790829,42.76017258,228.65,228.6,23.776884]
[1732628791261,42.76017258,228.65,228.59,23.776884]
[1732628791429,42.76017258,228.68,228.61,66.53705658]
[1732628791729,42.76017258,228.72,228.65,42.76017258]
[1732628791937,42.76017258,228.7,228.66,23.776884]
[1732628792132,42.76017258,228.72,228.66,23.776884]
[1732628792336,51.3,228.8,228.68,23.776884]
[1732628792534,42.76017258,228.78,228.71,42.76017258]
[1732628792742,42.76017258,228.75,228.69,4.3727]
[1732628793234,42.76017258,228.74,228.69,4.3727]
[1732628793548,42.76017258,228.75,228.69,4.3727]
[1732628793734,42.76017258,228.76,228.69,47.13287258]
[1732628793930,42.76017258,228.77,228.69,47.13287258]
[1732628794245,42.76017258,228.74,228.68,23.776884]
[1732628794450,94.06017258,228.8,228.69,47.13287258]
[1732628794451,42.76017258,228.76,228.69,47.13287258]
[1732628794843,42.76017258,228.81,228.73,49.36107258]
[1732628795024,42.76017258,228.81,228.74,66.53705658]
[1732628795223,42.76017258,228.79,228.73,6.6009]
[1732628795654,42.76017258,228.8,228.73,49.36107258]
[1732628795827,42.76017258,228.78,228.73,6.6009]
[1732628796261,42.76017258,228.74,228.72,15.9456]
[1732628796444,42.76017258,228.75,228.72,15.9456]
[1732628796629,42.76017258,228.77,228.72,15.9456]
[1732628797353,51.3,228.82,228.67,6.6009]
[1732628797354,42.76017258,228.76,228.68,42.76017258]
[1732628797553,42.76017258,228.74,228.68,23.776884]
[1732628798257,42.76017258,228.73,228.68,23.776884]
[1732628798556,42.76017258,228.74,228.69,4.3727]
[1732628798796,42.76017258,228.77,228.7,66.53705658]
[1732628798945,51.3,228.84,228.71,42.76017258]
[1732628798946,42.76017258,228.79,228.71,42.76017258]
[1732628799126,51.3,228.84,228.73,42.76017258]
[1732628799127,42.76017258,228.81,228.73,42.76017258]
[1732628799442,42.76017258,228.8,228.72,66.53705658]
[1732628799850,42.76017258,228.8,228.69,15.3045]
[1732628799851,42.76017258,228.81,228.73,42.76017258]
[1732628800359,42.76017258,228.8,228.75,20.0]
[1732628800537,42.76017258,228.78,228.7,23.776884]
[1732628800727,51.3,228.86,228.73,20.0]
[1732628800728,42.76017258,228.75,228.73,20.0]
[1732628800929,42.76017258,228.74,228.73,20.0]
[1732628801645,42.76017258,228.74,228.7,28.149384]
[1732628801968,42.76017258,228.74,228.68,4.3728]
[1732628802256,42.76017258,228.7,228.67,6.6009]
[1732628802641,42.76017258,228.75,228.68,23.776884]
[1732628802843,42.76017258,228.76,228.69,42.76017258]
[1732628803453,51.3,228.87,228.73,20.0]
[1732628803637,5.0,228.92,228.78,4.371]
[1732628803638,42.76017258,228.85,228.78,4.371]
[1732628804033,42.76017258,228.84,228.79,20.0]
[1732628804242,42.76017258,228.83,228.79,20.0]
[1732628804462,26.26073906,228.83,228.79,20.0]
[1732628804654,26.26073906,228.84,228.8,20.0]
[1732628804844,26.26073906,228.83,228.8,20.0]
[1732628805159,26.26073906,228.81,228.74,50.03762306]
[1732628805338,26.26073906,228.8,228.76,20.0]
[1732628806232,26.26073906,228.81,228.75,20.0]
[1732628806441,26.26073906,228.8,228.74,23.776884]
[1732628806754,51.3,228.87,228.74,23.776884]
[1732628806755,26.26073906,228.79,228.74,23.776884]
[1732628806952,26.26073906,228.81,228.77,20.0]
[1732628807252,26.26073906,228.83,228.78,23.776884]
[1732628808059,26.26073906,228.85,228.78,38.959984]
[1732628808263,26.26073906,228.84,228.78,38.959984]
[1732628808448,26.26073906,228.83,228.78,15.1831]
[1732628808650,26.26073906,228.85,228.78,15.1831]
[1732628809047,26.26073906,228.82,228.78,15.1831]
[1732628809544,26.26073906,228.85,228.79,23.776884]
[1732628810257,26.26073906,228.85,228.79,28.147584]
[1732628810464,26.26073906,228.87,228.8,32.87563906]
[1732628810963,0.5104813,228.89,228.84,26.26073906]
[1732628811143,26.77122036,228.89,228.84,23.776884]
[1732628811341,26.26073906,228.85,228.81,23.776884]
[1732628812059,0.5104813,228.89,228.8,6.6149]
[1732628812060,26.26073906,228.82,228.8,6.6149]
[1732628812445,26.26073906,228.83,228.8,6.6149]
[1732628812964,26.26073906,228.82,228.8,6.6149]
[1732628813337,0.5104813,228.89,228.78,15.1831]
[1732628813338,26.26073906,228.81,228.78,15.1831]
[1732628813541,26.26073906,228.79,228.75,6.6149]
[1732628813742,26.26073906,228.8,228.75,6.6149]
[1732628813962,26.26073906,228.8,228.75,10.9864]
[1732628814377,26.26073906,228.81,228.75,10.9864]
[1732628814842,26.26073906,228.82,228.76,23.776884]
[1732628815049,26.26073906,228.83,228.76,23.776884]
[1732628815242,0.5104813,228.89,228.76,23.776884]
[1732628815243,26.26073906,228.82,228.76,23.776884]
[1732628815442,26.26073906,228.79,228.75,6.6149]
[1732628816362,26.26073906,228.78,228.75,6.6149]
[1732628816571,26.26073906,228.8,228.75,6.6149]
[1732628817255,26.26073906,228.79,228.75,6.6149]
[1732628817566,26.26073906,228.78,228.73,23.776884]
[1732628818267,26.26073906,228.77,228.73,23.776884]
[1732628818560,51.3,228.85,228.73,23.776884]
[1732628818561,26.26073906,228.8,228.73,23.776884]
[1732628818776,26.26073906,228.8,228.73,54.40952306]
[1732628819365,26.26073906,228.8,228.73,28.148784]
[1732628819564,26.26073906,228.77,228.73,23.776884]
[1732628819869,26.26073906,228.78,228.73,23.776884]
[1732628820047,26.26073906,228.74,228.72,15.1831]
[1732628820248,26.26073906,228.8,228.66,16.6663]
[1732628820249,26.26073906,228.73,228.66,16.6663]
[1732628820445,26.26073906,228.69,228.66,16.6663]
[1732628820668,26.26073906,228.71,228.66,16.6663]
[1732628820950,20.0,228.81,228.66,21.0395]
[1732628821141,20.0,228.81,228.67,0.65569218]
[1732628821774,20.0,228.85,228.69,20.0]
[1732628822071,26.26073906,228.79,228.72,26.26073906]
[1732628822274,26.26073906,228.8,228.73,26.26073906]
[1732628822456,26.26073906,228.79,228.72,26.26073906]
[1732628822648,26.26073906,228.78,228.71,4.3723]
[1732628822971,26.26073906,228.74,228.67,4.3731]
[1732628823163,26.26073906,228.77,228.7,26.26073906]
[1732628823642,26.26073906,228.78,228.7,26.26073906]
[1732628823848,26.26073906,228.78,228.71,26.26073906]
[1732628824144,26.26073906,228.76,228.69,26.26073906]
[1732628824346,26.26073906,228.72,228.67,4.3731]
[1732628824569,26.26073906,228.68,228.66,16.6663]
[1732628824763,51.3,228.79,228.61,21.0322]
[1732628824764,26.26073906,228.67,228.61,21.0322]
[1732628824946,26.26073906,228.66,228.61,16.658]
[1732628825148,26.26073906,228.63,228.61,16.658]
[1732628825486,26.26073906,228.62,228.55,16.658]
[1732628825656,26.26073906,228.64,228.57,26.26073906]
[1732628825967,26.26073906,228.64,228.55,21.0333]
[1732628826167,26.26073906,228.64,228.56,26.26073906]
[1732628826350,26.26073906,228.65,228.57,30.63573906]
[1732628826752,26.26073906,228.63,228.55,42.91873906]
[1732628826947,26.26073906,228.63,228.56,4.3751]
[1732628827150,26.26073906,228.64,228.57,26.26073906]
[1732628827771,26.26073906,228.65,228.57,26.26073906]
[1732628827975,26.26073906,228.65,228.57,30.63553906]
[1732628828873,26.26073906,228.61,228.55,16.658]
[1732628829066,26.26073906,228.6,228.55,16.658]
[1732628829575,26.26073906,228.59,228.55,16.658]
[1732628829755,26.26073906,228.61,228.55,21.0333]
[1732628829957,26.26073906,228.64,228.57,26.26073906]
[1732628830271,26.26073906,228.67,228.56,23.776884]
[1732628830445,20.0,228.73,228.56,23.776884]
[1732628830644,4.3712,228.77,228.59,20.0]
[1732628831069,4.3712,228.77,228.6,23.776884]
[1732628831263,51.3,228.79,228.65,23.776884]
[1732628831465,26.26073906,228.74,228.67,26.26073906]
[1732628831665,26.26073906,228.75,228.68,26.26073906]
[1732628831854,26.26073906,228.72,228.65,30.63403906]
[1732628832059,26.26073906,228.71,228.65,4.3733]
[1732628835370,26.26073906,228.76,228.69,26.26073906]
[1732628835676,26.26073906,228.77,228.69,26.26073906]
[1732628836083,9.60537616,228.79,228.73,26.26073906]
[1732628836262,9.60537616,228.79,228.72,26.26073906]
[1732628836781,9.60537616,228.79,228.73,26.26073906]
[1732628836983,9.60537616,228.79,228.75,26.26073906]
[1732628837291,9.60537616,228.79,228.74,26.26073906]
[1732628837465,9.60537616,228.79,228.75,23.776884]
[1732628837667,9.60537616,228.79,228.78,26.26073906]
[1732628838067,9.60537616,228.79,228.78,30.63173906]
[1732628838253,9.60537616,228.79,228.78,4.371]
[1732628838460,9.60537616,228.79,228.78,30.63173906]
[1732628838659,9.60537616,228.79,228.78,60.76342306]
[1732628838860,26.77122036,228.89,228.78,60.76342306]
[1732628838861,0.5104813,228.89,228.79,40.119884]
[1732628839075,0.5104813,228.89,228.86,26.26073906]
[1732628839575,0.5104813,228.89,228.87,26.26073906]
[1732628840163,0.5104813,228.89,228.88,4.3691]
[1732628840364,0.5104813,228.89,228.88,30.62983906]
[1732628840590,0.5104813,228.89,228.88,54.40672306]
[1732628840771,0.5104813,228.89,228.88,60.76152306]
[1732628841164,0.5104813,228.89,228.88,77.10452306]
[1732628842489,26.26073906,228.99,228.91,20.0]
[1732628842698,26.26073906,228.99,228.91,46.26073906]
[1732628842993,38.82234641,229.0,228.92,26.26073906]
[1732628843174,38.82234641,229.0,228.98,26.26073906]
[1732628843175,12.56160735,229.0,228.98,26.26073906]
[1732628843374,3.24,229.03,228.99,26.26073906]
[1732628843681,26.26073906,229.04,228.93,23.776884]
[1732628843877,26.26073906,229.04,228.92,23.776884]
[1732628844078,26.26073906,229.04,228.96,26.26073906]
[1732628844387,26.26073906,229.02,228.95,26.26073906]
[1732628844565,26.26073906,228.99,228.92,30.62893906]
[1732628844768,26.26073906,229.0,228.92,30.62893906]
[1732628844977,26.26073906,228.99,228.92,30.62893906]
[1732628845188,26.26073906,228.95,228.89,4.3688]
[1732628845493,26.26073906,228.95,228.88,22.6978]
[1732628845494,26.26073906,228.95,228.88,48.95853906]
[1732628845700,26.26073906,228.96,228.89,26.26073906]
[1732628845989,26.26073906,228.95,228.88,53.32753906]
[1732628846386,26.26073906,228.97,228.9,4.3687]
[1732628846571,26.26073906,228.99,228.92,26.26073906]
[1732628846780,26.26073906,229.01,228.94,26.26073906]
[1732628846973,26.26073906,229.02,228.94,26.26073906]
[1732628847377,26.26073906,229.04,228.97,26.26073906]
[1732628847690,26.26073906,229.03,228.95,26.26073906]
[1732628847873,20.0,229.07,228.93,26.26073906]
[1732628847874,26.26073906,229.01,228.93,26.26073906]
[1732628848469,26.26073906,229.03,228.95,26.26073906]
[1732628848894,26.26073906,229.04,228.97,26.26073906]
[1732628849065,26.26073906,229.04,228.96,26.26073906]
[1732628849270,26.26073906,229.03,228.95,50.03762306]
[1732628850192,26.26073906,229.04,228.97,26.26073906]
[1732628850376,26.26073906,229.05,228.97,26.26073906]
[1732628850581,26.26073906,229.06,228.98,26.26073906]
[1732628850803,26.26073906,229.07,229.0,26.26073906]
[1732628851095,26.26073906,229.08,229.0,26.26073906]
[1732628851319,26.26073906,229.07,229.0,26.26073906]
[1732628851497,12.98297928,229.12,229.0,26.26073906]
[1732628851678,26.26073906,229.08,229.0,26.26073906]
[1732628851879,26.26073906,229.07,229.0,26.26073906]
[1732628852078,26.26073906,229.08,229.0,26.26073906]
[1732628852281,26.26073906,229.06,228.99,26.26073906]
[1732628852472,26.26073906,229.07,229.0,26.26073906]
[1732628852900,26.26073906,229.06,228.99,26.26073906]
[1732628853480,26.26073906,229.06,228.98,26.26073906]
[1732628854096,26.26073906,229.06,228.99,4.367]
[1732628854398,4.8749813,229.12,228.97,26.26073906]
[1732628854399,26.26073906,229.05,228.97,26.26073906]
[1732628854590,26.26073906,229.05,228.98,26.26073906]
[1732628854774,26.26073906,229.06,228.98,26.26073906]
[1732628855097,26.26073906,229.07,229.0,26.26073906]
[1732628855300,26.26073906,229.09,229.02,26.26073906]
[1732628855500,26.26073906,229.08,229.01,49.28813906]
[1732628855879,26.26073906,229.09,229.01,49.28813906]
[1732628856179,26.26073906,229.09,229.03,4.3662]
[1732628856500,26.26073906,229.1,229.03,30.62693906]
[1732628856703,26.77122036,229.12,229.04,26.26073906]
[1732628857205,26.26073906,229.11,229.04,26.26073906]
[1732628857407,26.26073906,229.07,229.02,4.3663]
[1732628857796,26.26073906,229.07,229.01,23.0274]
[1732628858101,26.26073906,229.04,228.98,4.367]
[1732628858304,26.26073906,228.99,228.96,23.0274]
[1732628858509,26.26073906,228.98,228.96,23.0274]
[1732628859004,26.26073906,228.98,228.92,4.48896021]
[1732628859191,26.26073906,228.98,228.93,0.12515613]
[1732628859392,12.04057527,229.1,228.93,0.12515613]
[1732628859393,26.26073906,228.99,228.93,0.12515613]
[1732628859590,51.3,229.09,228.93,0.12515613]
[1732628859591,26.26073906,228.95,228.93,0.12515613]
[1732628859792,26.26073906,228.94,228.93,0.12515613]
[1732628860897,26.26073906,228.94,228.84,0.07110897]
[1732628861109,26.26073906,228.9,228.84,0.07110897]
[1732628861285,26.26073906,228.89,228.84,0.07110897]
[1732628861486,26.26073906,228.85,228.84,0.07110897]
[1732628861795,20.0,228.92,228.84,0.07110897]
[1732628862003,26.26073906,228.89,228.84,0.07110897]
[1732628862702,26.26073906,228.9,228.84,0.07110897]
[1732628863310,26.26073906,228.91,228.85,4.3696]
[1732628864302,26.26073906,228.9,228.84,0.07110897]
[1732628864907,26.26073906,228.91,228.84,30.70154803]
[1732628865706,26.26073906,228.98,228.9,26.26073906]
[1732628865886,26.26073906,228.96,228.89,30.62953906]
[1732628866083,26.26073906,228.95,228.89,4.3688]
[1732628866507,6.6248,229.04,228.9,23.776884]
[1732628866708,26.26073906,229.01,228.94,26.26073906]
[1732628867011,26.26073906,229.02,228.95,26.32553199]
[1732628867189,26.26073906,229.03,228.96,0.06311881]
[1732628867388,62.2899,229.09,228.96,0.06311881]
[1732628867389,26.26073906,229.01,228.96,0.06311881]
[1732628867702,26.26073906,229.02,228.96,0.06311881]
[1732628868002,26.26073906,229.0,228.96,0.06311881]
[1732628869290,26.26073906,229.02,228.96,0.06311881]
[1732628869804,26.26073906,229.0,228.93,4.368]
[1732628870607,26.26073906,228.98,228.9,26.26073906]
[1732628870814,26.26073906,228.94,228.87,15.61]
[1732628871114,26.26073906,228.9,228.86,6.5557]
[1732628871713,26.26073906,228.88,228.81,41.87073906]
[1732628871887,26.26073906,228.89,228.82,26.26073906]
[1732628872087,26.26073906,228.92,228.85,26.26073906]
[1732628872409,26.26073906,228.92,228.83,26.26073906]
[1732628872904,26.26073906,228.93,228.86,26.26073906]
[1732628873107,26.26073906,228.94,228.87,26.26073906]
[1732628873406,26.26073906,228.95,228.88,0.05992563]
[1732628873712,26.26073906,228.96,228.88,26.32066469]
[1732628873880,4.3668,229.0,228.88,26.32066469]
[1732628873881,26.26073906,228.94,228.88,0.05992563]
[1732628874897,26.26073906,228.95,228.88,26.32066469]
[1732628875107,26.26073906,228.95,228.89,0.05893107]
[1732628876509,26.26073906,228.93,228.89,0.05893107]
[1732628877097,4.3666,229.01,228.89,0.05893107]
[1732628877098,26.26073906,228.91,228.89,0.05893107]
[1732628877511,52.52147812,228.91,228.89,0.05893107]
[1732628877709,20.0,228.88,228.76,19.9812]
[1732628877910,26.26073906,228.83,228.76,15.61]
[1732628878104,26.26073906,228.85,228.77,26.26073906]
[1732628878611,26.26073906,228.85,228.78,26.26073906]
[1732628878809,26.26073906,228.87,228.79,26.26073906]
[1732628878995,26.26073906,228.88,228.8,26.26073906]
[1732628879314,26.26073906,228.84,228.77,4.371]
[1732628879508,26.26073906,228.85,228.78,26.26073906]
[1732628879707,26.26073906,228.86,228.79,26.26073906]
[1732628879892,26.26073906,228.86,228.77,30.63173906]
[1732628880214,26.26073906,228.86,228.79,26.26073906]
[1732628880406,26.26073906,228.84,228.76,46.24193906]
[1732628880599,26.26073906,228.86,228.8,0.05743342]
[1732628880792,4.3687,228.9,228.8,0.05743342]
[1732628880793,26.26073906,228.87,228.8,0.05743342]
[1732628881294,26.26073906,228.85,228.8,0.05743342]
[1732628881495,26.26073906,228.86,228.8,0.05743342]
[1732628881698,26.26073906,228.88,228.8,26.31817248]
[1732628882294,26.26073906,228.86,228.8,0.05743342]
[1732628882615,26.26073906,228.84,228.8,0.05743342]
[1732628882823,26.26073906,228.81,228.8,0.05743342]
[1732628883113,52.52147812,228.81,228.8,0.05743342]
[1732628883304,26.26073906,228.81,228.69,27.3818]
[1732628883488,26.26073906,228.76,228.69,23.0091]
[1732628883691,20.0,228.8,228.74,26.26073906]
[1732628883913,51.3,228.86,228.75,26.26073906]
[1732628883914,26.26073906,228.83,228.75,26.26073906]
[1732628884293,51.3,228.88,228.7,0.78109964]
[1732628884493,20.0,228.87,228.7,0.78109964]
[1732628884694,26.26073906,228.89,228.71,5.0]
[1732628884912,4.3683,228.93,228.8,26.26073906]
[1732628885115,26.26073906,228.87,228.8,26.26073906]
[1732628885617,26.26073906,228.89,228.82,4.3702]
[1732628886799,26.26073906,228.89,228.81,26.26073906]
[1732628887002,4.3683,228.93,228.75,26.26073906]
[1732628887003,26.26073906,228.83,228.75,26.26073906]
[1732628887200,26.26073906,228.81,228.73,26.26073906]
[1732628888015,26.26073906,228.85,228.77,26.26073906]
[1732628888321,26.26073906,228.85,228.78,26.26073906]
[1732628888844,26.26073906,228.86,228.78,26.26073906]
[1732628889027,26.26073906,228.91,228.83,26.26073906]
[1732628889324,26.26073906,228.84,228.77,4.371]
[1732628889509,75.076884,228.9,228.76,6.6441]
[1732628889815,75.076884,228.9,228.76,37.27613906]
[1732628890320,20.0,228.87,228.77,26.26073906]
[1732628890495,26.26073906,228.84,228.77,26.26073906]
[1732628890702,26.26073906,228.82,228.76,4.3713]
[1732628890916,26.26073906,228.83,228.75,30.63223906]
[1732628891215,26.26073906,228.83,228.76,26.26073906]
[1732628891401,26.26073906,228.85,228.78,26.26073906]
[1732628891604,26.26073906,228.89,228.82,26.26073906]
[1732628891917,26.26073906,228.89,228.81,26.26073906]
[1732628892093,26.26073906,228.87,228.79,26.26073906]
[1732628892291,26.26073906,228.88,228.8,26.26073906]
[1732628892895,26.26073906,228.86,228.79,26.26073906]
[1732628893727,26.26073906,228.92,228.84,26.26073906]
[1732628893903,26.26073906,228.9,228.83,26.26073906]
[1732628894433,26.26073906,228.89,228.82,32.90483906]
[1732628894606,26.26073906,228.9,228.83,26.26073906]
[1732628896225,26.26073906,228.87,228.82,6.6441]
[1732628896626,26.26073906,228.83,228.77,10.7423]
[1732628896805,26.26073906,228.84,228.77,37.00303906]
[1732628897001,55.6682,228.93,228.8,26.26073906]
[1732628897202,26.26073906,228.87,228.8,26.26073906]
[1732628897417,26.26073906,228.89,228.82,26.26073906]
[1732628897629,26.26073906,228.9,228.83,26.26073906]
[1732628897805,26.26073906,228.91,228.83,26.26073906]
[1732628898223,26.26073906,228.93,228.85,26.26073906]
[1732628898418,12.28019675,228.95,228.9,26.26073906]
[1732628898629,12.28019675,228.95,228.89,26.26073906]
[1732628898926,12.28019675,228.95,228.9,26.26073906]
[1732628899104,12.28019675,228.95,228.88,6.3713]
[1732628899429,38.54093581,228.95,228.88,32.63203906]
[1732628899609,26.26073906,228.94,228.88,6.3713]
[1732628900122,12.28019675,228.95,228.89,26.26073906]
[1732628900333,12.28019675,228.95,228.9,26.26073906]
[1732628900503,12.28019675,228.95,228.88,10.7403]
[1732628900504,26.26073906,229.02,228.94,26.26073906]
[1732628900700,7.6054,229.07,228.92,26.26073906]
[1732628900701,26.26073906,228.99,228.92,26.26073906]
[1732628900900,26.26073906,228.99,228.89,23.776884]
[1732628900901,26.26073906,228.99,228.91,26.26073906]
[1732628901101,26.26073906,228.96,228.89,50.03762306]
[1732628901527,26.26073906,228.97,228.9,26.26073906]
[1732628901724,26.26073906,228.99,228.92,26.26073906]
[1732628901928,26.26073906,229.0,228.93,26.26073906]
[1732628902109,26.26073906,228.98,228.91,26.26073906]
[1732628902302,26.26073906,228.99,228.92,26.26073906]
[1732628902825,26.26073906,229.0,228.92,26.26073906]
[1732628903031,26.26073906,228.98,228.91,26.26073906]
[1732628903432,26.26073906,228.94,228.88,10.7403]
[1732628903726,26.26073906,228.91,228.88,6.3713]
[1732628903914,26.26073906,228.92,228.88,6.3713]
[1732628904119,26.26073906,228.95,228.88,32.63203906]
[1732628904625,15.2804,229.05,228.92,26.26073906]
[1732628904626,26.26073906,229.0,228.92,26.26073906]
[1732628904930,26.26073906,228.99,228.92,26.26073906]
[1732628905118,26.26073906,229.02,228.95,26.26073906]
[1732628905318,26.26073906,229.0,228.92,26.26073906]
[1732628905513,26.26073906,228.99,228.92,50.03762306]
[1732628905906,26.26073906,228.99,228.91,26.26073906]
[1732628906212,26.26073906,228.99,228.92,26.26073906]
[1732628906733,26.26073906,229.05,228.98,26.26073906]
[1732628907211,26.26073906,229.04,228.97,41.81903906]
[1732628907735,26.26073906,229.05,228.98,26.26073906]
[1732628908026,26.26073906,229.04,228.97,41.81903906]
[1732628908235,55.6647,229.11,228.97,15.5583]
[1732628908236,26.26073906,228.99,228.97,15.5583]
[1732628908528,26.26073906,228.99,228.92,50.03762306]
[1732628908826,20.0,229.05,228.94,26.26073906]
[1732628909030,26.26073906,229.01,228.94,26.26073906]
[1732628909212,26.26073906,229.0,228.93,26.26073906]
[1732628909619,26.26073906,228.98,228.92,23.776884]
[1732628909813,26.26073906,228.93,228.91,15.5583]
[1732628910016,26.26073906,229.02,228.88,6.3713]
[1732628910017,26.26073906,228.92,228.88,6.3713]
[1732628910322,26.26073906,228.94,228.88,6.3713]
[1732628910507,20.0,228.98,228.88,6.3713]
[1732628910707,20.0,228.99,228.88,6.3713]
[1732628910930,20.0,228.99,228.88,10.7403]
[1732628911133,20.0,229.03,228.88,6.3713]
[1732628911425,26.26073906,228.96,228.89,50.03762306]
[1732628911937,26.26073906,228.97,228.9,26.26073906]
[1732628912111,26.26073906,228.96,228.89,50.03762306]
[1732628912611,26.26073906,228.94,228.89,23.776884]
[1732628912815,26.26073906,228.92,228.88,6.3713]
[1732628913013,26.26073906,228.93,228.88,6.3713]
[1732628913220,26.26073906,228.91,228.88,6.3713]
[1732628913428,75.076884,229.01,228.88,6.3713]
[1732628913429,26.26073906,228.89,228.88,6.3713]
[1732628913626,26.26073906,228.89,228.81,22.379]
[1732628913931,11.90497527,229.0,228.81,22.379]
[1732628913932,26.26073906,228.86,228.81,22.379]
[1732628914229,26.26073906,228.87,228.81,22.379]
[1732628914638,26.26073906,228.92,228.84,26.26073906]
[1732628914934,26.26073906,228.91,228.84,26.26073906]
[1732628915226,26.26073906,228.88,228.81,26.7493]
[1732628915431,26.26073906,228.88,228.81,53.01003906]
[1732628915639,26.26073906,228.88,228.82,23.776884]
[1732628915808,26.26073906,228.88,228.82,13.65688401]
[1732628916010,26.26073906,228.87,228.81,22.379]
[1732628916337,26.26073906,228.84,228.81,22.379]
[1732628916530,26.26073906,228.86,228.81,22.379]
[1732628916831,26.26073906,228.9,228.83,26.26073906]
[1732628917221,26.26073906,228.91,228.84,26.91596746]
[1732628917931,26.26073906,228.93,228.86,26.26073906]
[1732628918329,26.26073906,228.95,228.88,26.38622906]
[1732628918524,26.26073906,228.97,228.89,26.91579632]
[1732628918727,26.26073906,228.96,228.9,6.2951]
[1732628919527,26.26073906,228.96,228.91,16.0839]
[1732628919829,26.26073906,228.95,228.91,16.0839]
[1732628920335,26.26073906,228.93,228.91,16.0839]
[1732628920538,26.26073906,228.97,228.91,16.0839]
[1732628920840,26.26073906,228.98,228.92,0.78048088]
[1732628921028,26.26073906,228.97,228.92,0.78048088]
[1732628921533,4.3648,229.11,228.94,0.12549]
[1732628921534,26.26073906,229.0,228.94,0.12549]
[1732628921730,26.26073906,228.98,228.94,0.12549]
[1732628921917,1.7387672,229.09,228.92,5.65499088]
[1732628921918,26.26073906,228.96,228.92,0.65499088]
[1732628922238,26.26073906,228.96,228.92,0.12549]
[1732628922824,26.26073906,228.97,228.92,0.12549]
[1732628923026,26.26073906,229.0,228.94,24.027864]
[1732628923233,26.26073906,228.99,228.94,24.027864]
[1732628924240,0.5104813,229.12,228.98,0.12549]
[1732628924429,26.26073906,229.09,229.03,0.12549]
[1732628924630,26.26073906,229.09,229.03,0.7801231]
[1732628924826,26.26073906,229.08,229.03,0.7801231]
[1732628925030,26.26073906,229.06,229.03,0.7801231]
[1732628925232,26.26073906,229.07,229.03,0.12549]
[1732628925448,26.26073906,229.08,229.04,0.6546488]
[1732628925626,26.26073906,229.1,229.05,24.027864]
[1732628925942,26.26073906,229.1,229.07,0.12549]
[1732628926245,26.77122036,229.12,229.07,24.027864]
[1732628926443,0.5104813,229.12,229.08,0.65451646]
[1732628926739,26.26073906,229.11,229.08,0.65451646]
[1732628926944,26.26073906,229.11,229.05,5.0]
[1732628926945,26.26073906,229.11,229.06,23.902374]
[1732628927241,0.5104813,229.12,229.08,0.12549]
[1732628927536,0.5104813,229.12,229.1,0.25098]
[1732628928038,0.5104813,229.12,229.09,0.65449253]
[1732628928244,26.26073906,229.1,229.06,24.43134924]